fUSD/lending_fUSD_20240421
["ID","MTS","AMOUNT","RATE_DAILY","PERIOD"]
[323103649,1713665441635,-500.0,0.00017001,2]
[323103650,1713665441644,-500.0,0.00017001,2]
[323103651,1713665441653,-501.11408947,0.00017001,2]
[323103652,1713665441662,-500.0,0.00017001,2]
[323103653,1713665441671,-500.0,0.00017001,2]
[323103654,1713665441681,-511.82736961,0.00017001,2]
[323103655,1713665441690,-500.0,0.00017001,2]
[323103656,1713665441699,-500.77294523,0.00017001,2]
[323103657,1713665441708,-507.31345971,0.00017001,2]
[323103658,1713665441717,-500.98385235,0.00017001,2]
[323103659,1713665441727,-501.59699476,0.00017001,2]
[323103660,1713665441736,-513.28198258,0.00017001,2]
[323103661,1713665441745,-607.73,0.00017001,2]
[323103662,1713665441754,-503.46854846,0.00017001,2]
[323103663,1713665441763,-504.13755799,0.00017001,2]
[323103664,1713665441773,-590.70123946,0.00017001,2]
[323103665,1713665441782,-500.0,0.00017001,2]
[323103666,1713665441791,-524.17327876,0.00017001,2]
[323103667,1713665441800,-500.0,0.00017001,2]
[323103668,1713665441809,-500.0,0.00017001,2]
[323103669,1713665441819,-500.0,0.00017001,2]
[323103670,1713665441828,-500.50990763,0.00017001,2]
[323103671,1713665441837,-503.73860492,0.00017001,2]
[323103672,1713665441846,-501.11928938,0.00017001,2]
[323103673,1713665441855,-500.0,0.00017001,2]
[323103674,1713665441864,-502.00682331,0.00017001,2]
[323103675,1713665441874,-500.0,0.00017001,2]
[323103676,1713665441883,-514.65042473,0.00017001,2]
[323103677,1713665441892,-502.25036011,0.00017001,2]
[323103678,1713665441901,-501.39490738,0.00017001,2]
[323103679,1713665441910,-642.00521842,0.00017001,2]
[323103680,1713665441920,-542.82658179,0.00017001,2]
[323103681,1713665441929,-500.0,0.00017001,2]
[323103682,1713665441939,-500.0,0.00017001,2]
[323103683,1713665441948,-549.14726317,0.00017001,2]
[323103684,1713665441958,-503.09852781,0.00017001,2]
[323103685,1713665441967,-500.0,0.00017001,2]
[323103686,1713665441977,-512.43261599,0.00017001,2]
[323103687,1713665441987,-500.0,0.00017001,2]
[323103688,1713665441997,-503.93348272,0.00017001,2]
[323103689,1713665442006,-500.0,0.00017001,2]
[323103690,1713665442017,-321.09573576,0.00017001,2]
[323103691,1713665442027,-632.55446949,0.00017001,2]
[323103692,1713665442036,-502.52744299,0.00017001,2]
[323103693,1713665442045,-500.0,0.00017001,2]
[323103694,1713665442054,-500.0,0.00017001,2]
[323103695,1713665442065,-1000.24,0.00017001,2]
[323103696,1713665442074,-500.0,0.00017001,2]
[323103697,1713665442083,-500.0,0.00017001,2]
[323103698,1713665442092,-500.0,0.00017001,2]
[323103699,1713665442102,-500.0,0.00017001,2]
[323103700,1713665442111,-500.0,0.00017001,2]
[323103701,1713665442121,-503.22234442,0.00017001,2]
[323103702,1713665442130,-503.59046838,0.00017001,2]
[323103703,1713665442139,-535.70309221,0.00017001,2]
[323103704,1713665442148,-505.70096771,0.00017001,2]
[323103705,1713665442157,-556.66710976,0.00017001,2]
[323103706,1713665442166,-500.0,0.00017002,2]
[323103707,1713665442175,-472.47202422,0.00017002,2]
[323103708,1713665442185,-296.42505678,0.00017002,2]
[323103709,1713665442194,-500.0,0.00017002,2]
[323103710,1713665442203,-500.0,0.00017002,2]
[323103711,1713665442211,-705.12,0.00017002,2]
[323103712,1713665442220,-600.95002641,0.00017002,2]
[323103713,1713665442231,-500.0,0.00017002,2]
[323103714,1713665442239,-500.0,0.00017002,2]
[323103715,1713665442248,-644.48613309,0.00017002,2]
[323103718,1713665442257,-323.53526363,0.00017002,2]
[323103719,1713665442266,-500.0,0.00017002,2]
[323103720,1713665442275,-500.0,0.00017002,2]
[323103721,1713665442284,-223.68,0.00017002,2]
[323103722,1713665442293,-500.0,0.00017002,2]
[323103723,1713665442302,-500.0,0.00017002,2]
[323103724,1713665442310,-500.0,0.00017002,2]
[323103725,1713665442319,-196.25397983,0.00017002,2]
[323103726,1713665442329,-500.0,0.00017002,2]
[323103727,1713665442338,-219.74297111,0.00017002,2]
[323103728,1713665442347,-500.0,0.00017002,2]
[323103729,1713665442356,-576.41437926,0.00017002,2]
[323103730,1713665442365,-500.0,0.00017002,2]
[323103731,1713665442374,-378.64576429,0.00017002,2]
[323103732,1713665442383,-500.0,0.00017002,2]
[323103733,1713665442392,-6935.44433978,0.00017087,2]
[323103734,1713665442401,-664.29,0.00017171,2]
[323103735,1713665442410,-1346.3753775,0.00017174,2]
[323103737,1713665442419,-800.0,0.00017261,2]
[323103739,1713665442428,-536.0,0.00017261,2]
[323103741,1713665442437,-500.0,0.00017274,2]
[323103743,1713665442446,-500.0,0.00017274,2]
[323103745,1713665442455,-500.0,0.00017274,2]
[323103747,1713665442464,-1311.09,0.00017274,2]
[323103749,1713665442474,-500.0,0.00017274,2]
[323103750,1713665442482,-694.04,0.00017274,2]
[323103752,1713665442492,-4992.93,0.00017274,2]
[323103754,1713665442500,-3093.23,0.00017274,2]
[323103755,1713665442510,-500.0,0.00017274,2]
[323103756,1713665442519,-500.0,0.00017274,2]
[323103757,1713665442528,-976.6,0.00017274,2]
[323103758,1713665442537,-500.0,0.00017274,2]
[323103759,1713665442546,-500.0,0.00017274,2]
[323103760,1713665442556,-500.0,0.00017274,2]
[323103761,1713665442565,-616.89,0.00017274,2]
[323103762,1713665442574,-500.0,0.00017274,2]
[323103763,1713665442583,-500.0,0.00017274,2]
[323103764,1713665442592,-500.0,0.00017274,2]
[323103765,1713665442602,-500.0,0.00017274,2]
[323103766,1713665442611,-500.0,0.00017274,2]
[323103767,1713665442620,-500.0,0.00017274,2]
[323103768,1713665442629,-500.0,0.00017274,2]
[323103769,1713665442638,-500.0,0.00017274,2]
[323103770,1713665442647,-500.0,0.00017274,2]
[323103771,1713665442656,-599.15,0.00017274,2]
[323103772,1713665442665,-956.72,0.00017274,2]
[323103773,1713665442674,-2282.44,0.00017274,2]
[323103774,1713665442683,-500.0,0.00017274,2]
[323103775,1713665442692,-500.0,0.00017274,2]
[323103776,1713665442702,-500.0,0.00017274,2]
[323103777,1713665442711,-500.0,0.00017274,2]
[323103778,1713665442720,-500.0,0.00017274,2]
[323103779,1713665442730,-500.0,0.00017274,2]
[323103780,1713665442740,-500.0,0.00017274,2]
[323103781,1713665442750,-500.0,0.00017274,2]
[323103782,1713665442758,-1350.35,0.00017274,2]
[323103783,1713665442767,-205.14758053,0.00017274,2]
[323103784,1713665442776,-627.45,0.00017274,2]
[323103785,1713665442785,-1020.81,0.00017274,2]
[323103786,1713665442794,-500.0,0.00017274,2]
[323103787,1713665442803,-500.0,0.00017274,2]
[323103788,1713665442813,-500.0,0.00017274,2]
[323103789,1713665442822,-1075.71,0.00017274,2]
[323103790,1713665442831,-3774.39,0.00017274,2]
[323103791,1713665442840,-1906.36,0.00017274,2]
[323103792,1713665442850,-719.06,0.00017274,2]
[323103793,1713665442859,-500.0,0.00017274,2]
[323103794,1713665442869,-500.0,0.00017274,2]
[323103795,1713665442878,-500.0,0.00017274,2]
[323103796,1713665442888,-1015.18,0.00017274,2]
[323103797,1713665442897,-500.0,0.00017274,2]
[323103798,1713665442906,-492.06047478,0.00017274,2]
[323103799,1713665442916,-589.9,0.00017274,2]
[323103800,1713665442925,-500.0,0.00017274,2]
[323103801,1713665442934,-801.68,0.00017274,2]
[323103802,1713665442944,-500.0,0.00017274,2]
[323103803,1713665442954,-500.0,0.00017274,2]
[323103804,1713665442963,-500.0,0.00017274,2]
[323103805,1713665442972,-3794.57,0.00017274,2]
[323103806,1713665442982,-500.0,0.00017274,2]
[323103807,1713665442991,-525.27,0.00017274,2]
[323103808,1713665443000,-500.0,0.00017274,2]
[323103809,1713665443010,-788.76,0.00017274,2]
[323103810,1713665443021,-500.0,0.00017274,2]
[323103811,1713665443030,-1443.27,0.00017274,2]
[323103812,1713665443039,-500.0,0.00017274,2]
[323103813,1713665443048,-500.0,0.00017274,2]
[323103814,1713665443057,-286.47884785,0.00017274,2]
[323103815,1713665443066,-500.0,0.00017274,2]
[323103816,1713665443076,-705.82,0.00017274,2]
[323103817,1713665443085,-608.24,0.00017274,2]
[323103818,1713665443095,-631.31,0.00017274,2]
[323103819,1713665443105,-500.0,0.00017274,2]
[323103820,1713665443113,-567.23,0.00017274,2]
[323103822,1713665443123,-500.0,0.00017274,2]
[323103824,1713665443132,-500.0,0.00017274,2]
[323103826,1713665443141,-500.0,0.00017274,2]
[323103828,1713665443151,-500.0,0.00017274,2]
[323103829,1713665443160,-500.0,0.00017274,2]
[323103831,1713665443169,-500.0,0.00017274,2]
[323103833,1713665443179,-570.35,0.00017274,2]
[323103835,1713665443189,-500.0,0.00017274,2]
[323103836,1713665443197,-500.0,0.00017274,2]
[323103837,1713665443207,-500.0,0.00017274,2]
[323103838,1713665443216,-500.0,0.00017274,2]
[323103839,1713665443225,-895.15,0.00017274,2]
[323103840,1713665443234,-963.71,0.00017274,2]
[323103841,1713665443243,-500.0,0.00017274,2]
[323103842,1713665443252,-500.0,0.00017274,2]
[323103843,1713665443261,-500.0,0.00017274,2]
[323103844,1713665443270,-582.77804499,0.00017274,2]
[323103845,1713665443280,-500.0,0.00017274,2]
[323103846,1713665443289,-500.0,0.00017274,2]
[323103847,1713665443298,-500.0,0.00017274,2]
[323103848,1713665443306,-500.0,0.00017275,2]
[323103849,1713665443316,-970.04,0.00017275,2]
[323103850,1713665443325,-403.03777938,0.00017275,2]
[323103851,1713665443334,-343.55536363,0.00017275,2]
[323103852,1713665443343,-500.0,0.00017275,2]
[323103853,1713665443352,-500.0,0.00017275,2]
[323103854,1713665443361,-515.49882418,0.00017275,2]
[323103855,1713665443370,-525.24766662,0.00017275,2]
[323103856,1713665443379,-243.22219631,0.00017275,2]
[323103857,1713665443388,-500.0,0.00017275,2]
[323103858,1713665443397,-500.0,0.00017275,2]
[323103859,1713665443406,-500.0,0.00017275,2]
[323103860,1713665443415,-500.0,0.00017275,2]
[323103861,1713665443423,-500.0,0.00017275,2]
[323103862,1713665443433,-406.04726298,0.00017275,2]
[323103863,1713665443442,-480.07509186,0.00017275,2]
[323103864,1713665443450,-500.0,0.00017275,2]
[323103865,1713665443459,-418.32475345,0.00017275,2]
[323103866,1713665443468,-521.38756549,0.00017275,2]
[323103867,1713665443479,-342.78549956,0.00017275,2]
[323103868,1713665443488,-500.0,0.00017275,2]
[323103869,1713665443497,-500.0,0.00017275,2]
[323103870,1713665443506,-500.0,0.00017275,2]
[323103871,1713665443515,-150.23919706,0.00017275,2]
[323103872,1713665443523,-296.94023652,0.00017275,2]
[323103873,1713665443533,-333.73604181,0.00017275,2]
[323103874,1713665443542,-615.14425326,0.00017275,2]
[323103875,1713665443550,-567.38519757,0.00017275,2]
[323103876,1713665443560,-500.0,0.00017275,2]
[323103877,1713665443569,-404.50948452,0.00017275,2]
[323103878,1713665443578,-500.0,0.00017275,2]
[323103879,1713665443587,-500.0,0.00017275,2]
[323103880,1713665443596,-500.0,0.00017275,2]
[323103881,1713665443605,-500.0,0.00017275,2]
[323103882,1713665443614,-496.49896642,0.00017275,2]
[323103883,1713665443623,-1025.64,0.00017275,2]
[323103884,1713665443632,-500.0,0.00017275,2]
[323103885,1713665443641,-272.8663891,0.00017275,2]
[323103886,1713665443650,-500.0,0.00017275,2]
[323103887,1713665443659,-500.0,0.00017275,2]
[323103888,1713665443667,-500.0,0.00017275,2]
[323103889,1713665443676,-500.0,0.00017275,2]
[323103890,1713665443686,-500.0,0.00017275,2]
[323103891,1713665443694,-500.0,0.00017275,2]
[323103892,1713665443704,-742.61,0.00017275,2]
[323103893,1713665443713,-500.0,0.00017275,2]
[323103894,1713665443722,-500.0,0.00017275,2]
[323103895,1713665443731,-500.0,0.00017275,2]
[323103896,1713665443740,-500.0,0.00017275,2]
[323103897,1713665443750,-500.0,0.00017275,2]
[323103898,1713665443759,-500.0,0.00017275,2]
[323103899,1713665443768,-500.0,0.00017275,2]
[323103900,1713665443777,-500.0,0.00017275,2]
[323103901,1713665443787,-500.0,0.00017275,2]
[323103902,1713665443796,-500.0,0.00017275,2]
[323103903,1713665443805,-500.0,0.00017275,2]
[323103904,1713665443814,-500.0,0.00017275,2]
[323103905,1713665443823,-500.0,0.00017275,2]
[323103906,1713665443832,-500.0,0.00017275,2]
[323103907,1713665443841,-189.06779207,0.00017275,2]
[323103908,1713665443850,-500.0,0.00017275,2]
[323103909,1713665443859,-262.65159873,0.00017275,2]
[323103910,1713665443868,-250.89459835,0.00017275,2]
[323103911,1713665443877,-627.02809818,0.00017275,2]
[323103912,1713665443886,-500.0,0.00017275,2]
[323103913,1713665443895,-500.0,0.00017275,2]
[323103914,1713665443904,-500.0,0.00017275,2]
[323103915,1713665443913,-500.0,0.00017275,2]
[323103916,1713665443922,-500.0,0.00017275,2]
[323103917,1713665443931,-500.0,0.00017275,2]
[323103918,1713665443941,-237.13743896,0.00017275,2]
[323103919,1713665443950,-500.0,0.00017275,2]
[323103920,1713665443959,-500.0,0.00017275,2]
[323103921,1713665443968,-470.35027092,0.00017275,2]
[323103922,1713665443977,-500.0,0.00017275,2]
[323103923,1713665443987,-634.47726847,0.00017275,2]
[323103924,1713665443996,-564.77119127,0.00017275,2]
[323103925,1713665444005,-500.0,0.00017275,2]
[323103926,1713665444016,-500.0,0.00017275,2]
[323103927,1713665444026,-607.73,0.00017275,2]
[323103928,1713665444035,-500.0,0.00017275,2]
[323103929,1713665444044,-500.0,0.00017275,2]
[323103930,1713665444054,-500.0,0.00017275,2]
[323103931,1713665444064,-572.57234326,0.00017275,2]
[323103932,1713665444073,-500.0,0.00017275,2]
[323103933,1713665444083,-500.0,0.00017275,2]
[323103934,1713665444093,-500.0,0.00017275,2]
[323103935,1713665444103,-500.0,0.00017275,2]
[323103936,1713665444113,-500.0,0.00017275,2]
[323103937,1713665444122,-500.0,0.00017275,2]
[323103938,1713665444131,-1000.24,0.00017275,2]
[323103939,1713665444140,-280.08343685,0.00017275,2]
[323103940,1713665444149,-500.0,0.00017275,2]
[323103941,1713665444158,-500.0,0.00017275,2]
[323103942,1713665444167,-500.0,0.00017275,2]
[323103943,1713665444176,-500.0,0.00017275,2]
[323103944,1713665444185,-500.0,0.00017276,2]
[323103945,1713665444194,-593.22300457,0.00017276,2]
[323103946,1713665444203,-500.0,0.00017276,2]
[323103947,1713665444213,-705.12,0.00017276,2]
[323103948,1713665444222,-321.23,0.00017276,2]
[323103949,1713665444231,-500.0,0.00017276,2]
[323103950,1713665444241,-268.94098687,0.00017276,2]
[323103951,1713665444250,-269.21177179,0.00017276,2]
[323103952,1713665444259,-500.0,0.00017276,2]
[323103953,1713665444268,-500.0,0.00017276,2]
[323103954,1713665444277,-352.96378172,0.00017276,2]
[323103955,1713665444287,-500.0,0.00017276,2]
[323103956,1713665444296,-500.0,0.00017276,2]
[323103957,1713665444306,-159.01035525,0.00017276,2]
[323103958,1713665444315,-606.45788028,0.00017276,2]
[323103959,1713665444496,-815.0,0.000173,2]
[323103960,1713665444506,-1000.0,0.000173,2]
[323103961,1713665444515,-676.0,0.000173,2]
[323103962,1713665444524,-500.0,0.00017548,2]
[323103963,1713665444533,-500.0,0.00017548,2]
[323103964,1713665444542,-500.0,0.00017548,2]
[323103965,1713665444551,-1311.09,0.00017548,2]
[323103966,1713665444560,-500.0,0.00017548,2]
[323103967,1713665444569,-694.04,0.00017548,2]
[323103968,1713665444578,-4992.93,0.00017548,2]
[323103969,1713665444588,-3093.23,0.00017548,2]
[323103970,1713665444597,-500.0,0.00017548,2]
[323103971,1713665444606,-500.0,0.00017548,2]
[323103972,1713665444615,-976.6,0.00017548,2]
[323103973,1713665444624,-500.0,0.00017548,2]
[323103974,1713665444633,-500.0,0.00017548,2]
[323103975,1713665444642,-500.0,0.00017548,2]
[323103976,1713665444652,-616.89,0.00017548,2]
[323103977,1713665444662,-500.0,0.00017548,2]
[323103978,1713665444671,-500.0,0.00017548,2]
[323103979,1713665444680,-500.0,0.00017548,2]
[323103980,1713665444690,-500.0,0.00017548,2]
[323103981,1713665444699,-500.0,0.00017548,2]
[323103982,1713665444709,-500.0,0.00017548,2]
[323103983,1713665444718,-500.0,0.00017548,2]
[323103984,1713665444727,-500.0,0.00017548,2]
[323103985,1713665444736,-500.0,0.00017548,2]
[323103986,1713665444745,-599.15,0.00017548,2]
[323103987,1713665444754,-956.72,0.00017548,2]
[323103988,1713665444763,-2282.44,0.00017548,2]
[323103989,1713665444773,-500.0,0.00017548,2]
[323103990,1713665444782,-500.0,0.00017548,2]
[323103991,1713665444791,-500.0,0.00017548,2]
[323103992,1713665444801,-500.0,0.00017548,2]
[323103993,1713665444810,-500.0,0.00017548,2]
[323103994,1713665444820,-500.0,0.00017548,2]
[323103995,1713665444830,-500.0,0.00017548,2]
[323103996,1713665444839,-500.0,0.00017548,2]
[323103997,1713665444848,-1350.35,0.00017548,2]
[323103998,1713665444858,-627.45,0.00017548,2]
[323103999,1713665444868,-1020.81,0.00017548,2]
[323104000,1713665444878,-500.0,0.00017548,2]
[323104001,1713665444887,-500.0,0.00017548,2]
[323104002,1713665444896,-500.0,0.00017548,2]
[323104003,1713665444906,-1075.71,0.00017548,2]
[323104004,1713665444915,-3774.39,0.00017548,2]
[323104005,1713665444925,-1906.36,0.00017548,2]
[323104006,1713665444934,-719.06,0.00017548,2]
[323104007,1713665444944,-500.0,0.00017548,2]
[323104008,1713665444954,-500.0,0.00017548,2]
[323104009,1713665444963,-500.0,0.00017548,2]
[323104010,1713665444973,-1015.18,0.00017548,2]
[323104011,1713665444982,-500.0,0.00017548,2]
[323104012,1713665444991,-589.9,0.00017548,2]
[323104013,1713665445001,-500.0,0.00017548,2]
[323104014,1713665445011,-801.68,0.00017548,2]
[323104015,1713665445024,-500.0,0.00017548,2]
[323104016,1713665445033,-500.0,0.00017548,2]
[323104017,1713665445043,-500.0,0.00017548,2]
[323104018,1713665445053,-3794.57,0.00017548,2]
[323104019,1713665445063,-500.0,0.00017548,2]
[323104020,1713665445072,-525.27,0.00017548,2]
[323104021,1713665445082,-500.0,0.00017548,2]
[323104022,1713665445092,-788.76,0.00017548,2]
[323104023,1713665445102,-500.0,0.00017548,2]
[323104024,1713665445111,-1443.27,0.00017548,2]
[323104025,1713665445120,-500.0,0.00017548,2]
[323104026,1713665445130,-500.0,0.00017548,2]
[323104027,1713665445140,-500.0,0.00017548,2]
[323104028,1713665445149,-705.82,0.00017548,2]
[323104029,1713665445159,-608.24,0.00017548,2]
[323104030,1713665445168,-631.31,0.00017548,2]
[323104031,1713665445177,-500.0,0.00017548,2]
[323104032,1713665445187,-567.23,0.00017548,2]
[323104033,1713665445197,-500.0,0.00017548,2]
[323104034,1713665445206,-500.0,0.00017548,2]
[323104035,1713665445216,-611.69,0.00017548,2]
[323104036,1713665445225,-500.0,0.00017548,2]
[323104037,1713665445234,-500.0,0.00017548,2]
[323104038,1713665445243,-500.0,0.00017548,2]
[323104039,1713665445253,-570.35,0.00017548,2]
[323104040,1713665445262,-500.0,0.00017548,2]
[323104041,1713665445271,-318.55786804,0.00017548,2]
[323104042,1713665445281,-500.0,0.00017548,2]
[323104043,1713665445290,-500.0,0.00017548,2]
[323104044,1713665445299,-895.15,0.00017548,2]
[323104045,1713665445308,-963.71,0.00017548,2]
[323104046,1713665445317,-500.0,0.00017548,2]
[323104047,1713665445326,-500.0,0.00017548,2]
[323104048,1713665445335,-500.0,0.00017548,2]
[323104050,1713665445344,-500.0,0.00017548,2]
[323104051,1713665445353,-500.0,0.00017548,2]
[323104052,1713665445363,-500.0,0.00017548,2]
[323104053,1713665445372,-500.0,0.00017549,2]
[323104054,1713665445381,-970.04,0.00017549,2]
[323104056,1713665445390,-447.19304901,0.00017549,2]
[323104057,1713665445399,-500.0,0.00017549,2]
[323104058,1713665445408,-378.58512455,0.00017549,2]
[323104059,1713665445417,-291.31763842,0.00017549,2]
[323104060,1713665445426,-394.89,0.00017549,2]
[323104061,1713665445436,-384.59213644,0.00017549,2]
[323104063,1713665445445,-490.68802217,0.00017549,2]
[323104064,1713665445454,-500.0,0.00017549,2]
[323104066,1713665445463,-500.0,0.00017549,2]
[323104068,1713665445473,-628.69345344,0.00017549,2]
[323104070,1713665445486,-385.99547569,0.00017549,2]
[323104073,1713665445495,-500.0,0.00017549,2]
[323104075,1713665445505,-500.0,0.00017549,2]
[323104076,1713665445514,-500.0,0.00017549,2]
[323104078,1713665445523,-500.0,0.00017549,2]
[323104079,1713665445533,-500.0,0.00017549,2]
[323104080,1713665445543,-1025.64,0.00017549,2]
[323104081,1713665445553,-500.0,0.00017549,2]
[323104083,1713665445562,-500.0,0.00017549,2]
[323104085,1713665445572,-500.0,0.00017549,2]
[323104087,1713665445581,-500.0,0.00017549,2]
[323104088,1713665445591,-500.0,0.00017549,2]
[323104090,1713665445601,-500.0,0.00017549,2]
[323104092,1713665445610,-500.0,0.00017549,2]
[323104094,1713665445619,-742.61,0.00017549,2]
[323104096,1713665445629,-500.0,0.00017549,2]
[323104098,1713665445638,-500.0,0.00017549,2]
[323104101,1713665445647,-395.63365434,0.00017549,2]
[323104103,1713665445657,-500.0,0.00017549,2]
[323104105,1713665445666,-500.0,0.00017549,2]
[323104107,1713665445675,-500.0,0.00017549,2]
[323104109,1713665445685,-311.33976161,0.00017549,2]
[323104111,1713665445695,-500.0,0.00017549,2]
[323104113,1713665445705,-500.0,0.00017549,2]
[323104115,1713665445714,-500.0,0.00017549,2]
[323104117,1713665445725,-314.28772626,0.00017549,2]
[323104119,1713665445737,-500.0,0.00017549,2]
[323104121,1713665445746,-500.0,0.00017549,2]
[323104123,1713665445756,-500.0,0.00017549,2]
[323104124,1713665445765,-500.0,0.00017549,2]
[323104126,1713665445775,-500.0,0.00017549,2]
[323104128,1713665445785,-500.0,0.00017549,2]
[323104129,1713665445795,-304.62111301,0.00017549,2]
[323104130,1713665445804,-500.0,0.00017549,2]
[323104131,1713665445814,-500.0,0.00017549,2]
[323104132,1713665445824,-500.0,0.00017549,2]
[323104133,1713665445835,-509.97778047,0.00017549,2]
[323104134,1713665445845,-427.67372784,0.00017549,2]
[323104135,1713665445854,-574.50606463,0.00017549,2]
[323104136,1713665445864,-500.0,0.00017549,2]
[323104137,1713665445874,-500.0,0.00017549,2]
[323104138,1713665445884,-607.73,0.00017549,2]
[323104139,1713665445894,-500.0,0.00017549,2]
[323104140,1713665445904,-430.5510491,0.00017549,2]
[323104141,1713665445914,-500.0,0.00017549,2]
[323104142,1713665445924,-500.0,0.00017549,2]
[323104143,1713665445934,-500.0,0.00017549,2]
[323104144,1713665445944,-312.34996613,0.00017549,2]
[323104145,1713665445954,-402.78,0.00017549,2]
[323104146,1713665445964,-373.58728381,0.00017549,2]
[323104147,1713665445974,-500.0,0.00017549,2]
[323104148,1713665445984,-1000.24,0.00017549,2]
[323104149,1713665445994,-500.0,0.00017549,2]
[323104150,1713665446004,-500.0,0.00017549,2]
[323104151,1713665446015,-500.0,0.00017549,2]
[323104152,1713665446025,-500.0,0.00017549,2]
[323104153,1713665446034,-151.0,0.00017549,2]
[323104154,1713665446044,-500.0,0.0001755,2]
[323104155,1713665446054,-284.46904297,0.0001755,2]
[323104156,1713665446063,-705.12,0.0001755,2]
[323104157,1713665446073,-500.0,0.0001755,2]
[323104158,1713665446083,-489.33853168,0.0001755,2]
[323104159,1713665446094,-500.0,0.0001755,2]
[323104160,1713665446106,-500.0,0.0001755,2]
[323104161,1713665446115,-500.0,0.0001755,2]
[323104162,1713665446124,-153.237194,0.0001755,2]
[323104163,1713665446134,-500.0,0.00017646,2]
[323104164,1713665446143,-500.0,0.00017646,2]
[323104165,1713665446153,-500.0,0.00017646,2]
[323104166,1713665446162,-500.0,0.00017646,2]
[323104167,1713665446171,-500.0,0.00017646,2]
[323104168,1713665446181,-500.0,0.00017646,2]
[323104169,1713665446190,-500.0,0.00017646,2]
[323104170,1713665446199,-500.0,0.00017646,2]
[323104171,1713665446209,-500.0,0.00017646,2]
[323104172,1713665446219,-361.98,0.00017646,2]
[323104173,1713665446230,-500.0,0.00017646,2]
[323104174,1713665446239,-500.0,0.00017646,2]
[323104175,1713665446249,-500.0,0.00017646,2]
[323104176,1713665446258,-500.0,0.00017646,2]
[323104177,1713665446268,-1346.3753775,0.00017705,2]
[323104178,1713665446277,-413.02,0.00017709,2]
[323104179,1713665446287,-194.26555456,0.00017722,2]
[323104180,1713665446296,-300.0,0.000178,2]
[323104181,1713665446306,-181.33015789,0.00017812,2]
[323104182,1713665446315,-500.0,0.00017822,2]
[323104183,1713665446325,-500.0,0.00017822,2]
[323104184,1713665446334,-500.0,0.00017822,2]
[323104185,1713665446343,-1311.09,0.00017822,2]
[323104186,1713665446352,-500.0,0.00017822,2]
[323104187,1713665446361,-694.04,0.00017822,2]
[323104188,1713665446371,-4992.93,0.00017822,2]
[323104189,1713665446380,-3093.23,0.00017822,2]
[323104190,1713665446389,-500.0,0.00017822,2]
[323104191,1713665446398,-500.0,0.00017822,2]
[323104192,1713665446407,-976.6,0.00017822,2]
[323104193,1713665446417,-500.0,0.00017822,2]
[323104194,1713665446426,-336.85955251,0.00017822,2]
[323104195,1713665446435,-500.0,0.00017822,2]
[323104196,1713665446444,-616.89,0.00017822,2]
[323104197,1713665446453,-500.0,0.00017822,2]
[323104198,1713665446462,-500.0,0.00017822,2]
[323104199,1713665446471,-500.0,0.00017822,2]